Cogmind - Beta 13 @@@ ROGUE MODE // 2024.04.18 @ 20:27:55 Player: UberDoot Result: Destroyed by D-53 Grenadier with Mini Grenade Launcher Performance ------------- Evolutions (1) 500 Regions Visited (3) 600 Robots Destroyed (34) 170 Value Destroyed (651) 651 Prototype IDs (2) 40 Alien Tech Used (0) 0 Bonus (0) 0 TOTAL SCORE: 1961 Bonus ------- None Cogmind --------- Core Integrity 0/400 Matter 255/300 Energy 98/100 System Corruption 0% Temperature Cool (36) Movement Core (50) Location -9/Mines Parts ------- > --- POWER (1) -------- (None) > --- PROPULSION (3) --- (None) > --- UTILITY (3) ------ (None) > --- WEAPON (2) ------- (None) > --- INVENTORY (5) ---- Light Ion Engine Signal Interpreter Field Laser Assault Rifle Assault Rifle Peak State ------------ > --- POWER ------------ Ion Engine > --- PROPULSION ------- Light Treads Compact Wheel Compact Wheel > --- UTILITY ---------- Thermal Generator Large Storage Unit Improved Terrain Scanner > --- WEAPON ----------- Field Laser Field Laser > --- INVENTORY -------- Ion Engine Light Ion Engine Aluminum Leg Aluminum Leg Thermal Generator Medium Matter Pod Structural Scanner Sensor Array Signal Interpreter Tractor Beam Field Laser Field Laser Assault Rifle Assault Rifle Assault Rifle [Rating: 19] Favorites ----------- Power Ion Engine Engine Ion Engine Propulsion Light Treads Treads Light Treads Leg Aluminum Leg Wheel Wheel Utility Large Storage Unit Device Thermal Generator Storage Large Storage Unit Protection Light Armor Plating Weapon Field Laser Energy Gun Field Laser Ballistic Gun Light Assault Rifle Ballistic Cannon Improved Light Cannon Launcher Mini Grenade Launcher Special Weapon Mining Laser Build | -11 -10 -9 -9 ------- Run | Yrd Mat Mat Min Slots Evolved 2 | . . 2 . Power . | . . . . Propulsion 1 | . . 1 . Utility 1 | . . 1 . Weapon . | . . . . Parts Attached 39 | 7 12 9 11 Power 4 | 1 1 . 2 Engine 4 | 1 1 . 2 Core . | . . . . Reactor . | . . . . Propulsion 11 | 2 4 3 2 Treads 4 | . 3 1 . Leg 3 | 2 . 1 . Wheel 4 | . 1 1 2 Hover . | . . . . Flight . | . . . . Utility 11 | 2 3 3 3 Device 7 | 1 1 2 3 Storage 3 | 1 2 . . Processor . | . . . . Hackware . | . . . . Protection 1 | . . 1 . Artifact . | . . . . Weapon 13 | 2 4 3 4 Energy Gun 3 | . . 3 . Energy Cannon . | . . . . Ballistic Gun 7 | 2 4 . 1 Ballistic Cannon 1 | . . . 1 Launcher 1 | . . . 1 Special Weapon 1 | . . . 1 Impact Weapon . | . . . . Slashing Weapon . | . . . . Piercing Weapon . | . . . . Special Melee Weapon . | . . . . Unidentified Prototypes . | . . . . Parts Lost 20 | . 4 6 10 Power 3 | . 1 1 1 Propulsion 6 | . . 2 4 Utility 5 | . 1 2 2 Weapon 6 | . 2 1 3 Highest Loss Streak 5 | . 1 5 5 To Critical Strikes . | . . . . Average Slot Usage (%) 91 | . 97 95 84 Engine 11 | . 13 10 10 Treads 14 | . 25 11 6 Wheel 11 | . 1 21 14 Device 17 | . 13 18 20 Storage 12 | . 14 11 11 Energy Gun 10 | . . 17 14 Ballistic Gun 12 | . 26 4 5 Naked Turns . | . . . . Heaviest Build 41 | 14 29 41 39 Greatest Support 40 | 20 40 40 40 Greatest Overweight (x) 9 | . 1 2 9 Average Overweight (x) . | . . . . Largest Inventory Capacity 15 | 8 15 15 15 Average Capacity 14 | 7 14 15 15 Most Carried 15 | 6 12 15 15 Average Carried 10 | 3 8 14 11 Final Capacity 15 | 8 15 15 5 Final Carried 12 | 6 12 12 5 Class Distribution -------------------- 77% | Mutant 22% | Scavenger-Mutant Dominant Class ---------------- Mutant | -10/Materials Mutant | -9/Materials Scavenger-Mutant | -9/Mines Resources | -11 -10 -9 -9 ----------- Run | Yrd Mat Mat Min Matter Collected 850 | 294 352 112 92 Remotely . | . . . . Salvage Created 996 | 99 384 328 185 Parts 69 | 11 18 27 13 Haulers Intercepted 1 | . . 1 . Recyclers Shooed 1 | . . 1 . Parts Field Recycled . | . . . . Retrieved Matter . | . . . . Parts Self-Destructed . | . . . . Prevented . | . . . . Kills | -11 -10 -9 -9 ------- Run | Yrd Mat Mat Min Combat Hostiles Destroyed 27 | . 10 9 8 Guns 25 | . 10 9 6 AOE 2 | . . . 2 Classes Destroyed 8 | 2 3 2 1 Worker 1 | . . . 1 Tunneler 2 | 2 . . . Hauler 1 | . . 1 . Recycler 2 | 1 . 1 . Watcher 1 | . 1 . . Swarmer 15 | . 3 6 6 Grunt 10 | . 7 1 2 Sentry 2 | . . 2 . Best Kill Streak 4 | 2 3 4 4 Combat Bots Only 4 | . 2 4 4 Max Kills in Single Turn 2 | 1 1 1 2 Gunslinging . | . . . . Exploded 2 | . . . 2 Melee . | . . . . Uniques/NPCs Destroyed . | . . . . Combat | -11 -10 -9 -9 -------- Run | Yrd Mat Mat Min Hostile Shots Fired 219 | . 70 74 75 Missed 57 | . 15 24 18 Damage Taken 2025 | . 618 587 820 Core 532 | . 131 93 308 Absorbed by Shields . | . . . . Core Remaining (%) 73 | 100 47 . . Volleys Fired 129 | 6 54 41 28 Largest 2 | 2 2 2 2 Hottest 126 | 40 40 126 126 Shots Fired 222 | 12 100 66 44 Gun 215 | 12 100 66 37 Cannon 5 | . . . 5 Launcher 2 | . . . 2 Special . | . . . . Kinetic 125 | 12 100 6 7 Thermal 95 | . . 60 35 Explosive 2 | . . . 2 Electromagnetic . | . . . . Robot Hit Streak 17 | 3 17 9 7 Robot Miss Streak 8 | 2 8 5 4 Penetration Max . | . . . . Secondary Targets 3 | . 1 1 1 Max Gunslinging Chain 1 | . 1 1 1 Shots Hit Robots 128 | 7 60 37 24 Core Hits 55 | 4 26 14 11 Critical Kills . | . . . . Critical Parts Destroyed 1 | . 1 . . Critical Strikes 2 | . 1 1 . Burn 1 | . . 1 . Destroy 1 | . 1 . . Melee Attacks . | . . . . Impact . | . . . . Slashing . | . . . . Piercing . | . . . . Sneak Attacks . | . . . . Combat Hostiles . | . . . . Follow-up Attacks . | . . . . Damage Inflicted 1860 | 72 634 609 545 Guns 1693 | 72 634 609 378 Cannons . | . . . . Explosions 167 | . . . 167 Melee . | . . . . Ramming . | . . . . Kinetic 737 | 72 634 25 6 Thermal 956 | . . 584 372 Explosive 167 | . . . 167 Electromagnetic . | . . . . Impact . | . . . . Slashing . | . . . . Piercing . | . . . . Highest Corruption . | . . . . Average Corruption . | . . . . Corruption Purged . | . . . . Corruption Blocked . | . . . . Overload Shots . | . . . . Overflow Damage 15 | . . . 15 Projectiles . | . . . . Explosions 15 | . . . 15 Melee . | . . . . Knockbacks . | . . . . Impact . | . . . . Kinetic . | . . . . Secondary . | . . . . Self-Inflicted Damage 82 | . . . 82 Shots 2 | . . . 2 Rammed . | . . . . Targets Rammed . | . . . . Kicked . | . . . . Crushed . | . . . . Highest Temperature 412 | . 26 353 412 Average Temperature 132 | . 9 137 169 Received Heat Transfer 528 | . 270 153 105 Effects 11 | . . 4 7 Shutdowns 1 | . . . 1 Energy Bleed 4 | . . 2 2 Interference 5 | . . 2 3 Damage (minor) 1 | . . . 1 Siege Activations . | . . . . Robots Corrupted . | . . . . Combat Hostiles . | . . . . Parts Fried . | . . . . Impact Corruptions . | . . . . Robots Melted . | . . . . Combat Hostiles . | . . . . Parts Melted 2 | . . 1 1 Heat Transferred 2146 | . . 1332 814 Parts Sabotaged . | . . . . Parts Stolen . | . . . . Parts Stripped . | . . . . Power Chain Reactions . | . . . . Alert | -11 -10 -9 -9 ------- Run | Yrd Mat Mat Min Peak Influence 383 | 15 196 383 171 Initial 51 | . 9 44 51 Average 91 | 5 83 170 62 Maximum Alert Level 1 | . . 1 . Low Security (%) 93 | 100 100 72 100 Level 1 6 | . . 27 . Level 2 . | . . . . Level 3 . | . . . . Level 4 . | . . . . Level 5 . | . . . . High Security . | . . . . Max Security . | . . . . Squads Dispatched 3 | . 2 1 . Investigation . | . . . . Extermination . | . . . . Reinforcement 3 | . 2 1 . Assault . | . . . . Garrison . | . . . . Intercept . | . . . . Searches Triggered . | . . . . Construction Impeded . | . . . . Haulers Reinforced . | . . . . Active Scanning Responses . | . . . . Cargo Convoy Interrupts . | . . . . Stealth | -11 -10 -9 -9 --------- Run | Yrd Mat Mat Min Distress Signals 5 | . 3 2 . Communications Jammed . | . . . . Distress Signals . | . . . . Times Spotted 59 | . 20 21 18 Peak Tracking Total 10 | . 4 6 10 Tactical Retreats 3 | . 1 1 1 Traps | -11 -10 -9 -9 ------- Run | Yrd Mat Mat Min Traps Triggered 2 | . 2 . . Indirectly . | . . . . Trap Hack Attempts . | . . . . Triggered . | . . . . Disarmed . | . . . . Reprogrammed . | . . . . Reused . | . . . . Traps Extracted . | . . . . Installed . | . . . . Triggered . | . . . . Machines | -11 -10 -9 -9 ---------- Run | Yrd Mat Mat Min Machines Disabled . | . . . . Max in Single Turn . | . . . . Machines Repaired . | . . . . Machines Dismantled . | . . . . Machines Sabotaged . | . . . . Overloaded Fab Kills . | . . . . Hacking | -11 -10 -9 -9 --------- Run | Yrd Mat Mat Min Machines Accessed 4 | . . 3 1 Terminals 3 | . . 2 1 Fabricators . | . . . . Repair Stations . | . . . . Recycling Units . | . . . . Scanalyzers 1 | . . 1 . Garrison Access . | . . . . Total Hacks 15 | . . 13 2 Successful 7 | . . 6 1 Failed 8 | . . 7 1 Catastrophic . | . . . . Database Lockouts . | . . . . Manual . | . . . . Terminals 9 | . . 7 2 Fabricators . | . . . . Repair Stations . | . . . . Recycling Units . | . . . . Scanalyzers 6 | . . 6 . Garrison Access . | . . . . Terminal Hacks 3 | . . 2 1 Robot Analysis 1 | . . 1 . Prototype ID Bank 1 | . . 1 . Dispatch Records 1 | . . . 1 Fabricator Hacks . | . . . . Repair Station Hacks . | . . . . Recycling Unit Hacks . | . . . . Scanalyzer 4 | . . 4 . Insert Component 2 | . . 2 . Analyze 2 | . . 2 . Garrison Access Hacks . | . . . . Unauthorized Hacks . | . . . . Terminals . | . . . . Fabricators . | . . . . Repair Stations . | . . . . Recycling Units . | . . . . Scanalyzers . | . . . . Garrison Access . | . . . . Data Cores Recovered . | . . . . Used . | . . . . Hacking Detections 4 | . . 3 1 Full Trace Events . | . . . . Feedback Events . | . . . . Feedback Blocked . | . . . . Robot Schematics Acquired . | . . . . Robots Built . | . . . . Authchips . | . . . . Time . | . . . . Total Robot Build Rating . | . . . . Part Schematics Acquired 2 | . . 2 . Parts Built . | . . . . Authchips . | . . . . Time . | . . . . Total Part Build Rating . | . . . . Parts Repaired . | . . . . Time . | . . . . Parts Recycled . | . . . . Recycled Matter . | . . . . Retrieved Matter . | . . . . Retrieved Components . | . . . . Parts Scanalyzed 2 | . . 2 . Part Schematics Acquired 2 | . . 2 . Parts Damaged . | . . . . Bothacking | -11 -10 -9 -9 ------------ Run | Yrd Mat Mat Min Used RIF Installer . | . . . . Robots Hacked . | . . . . Non-combat . | . . . . Combat . | . . . . Robot Hacks Applied . | . . . . Relay Couplers Released . | . . . . Fabnet Peak Effective % . | . . . . Robots Rewired . | . . . . Allies Hacked . | . . . . Hacks Repelled . | . . . . Allies | -11 -10 -9 -9 -------- Run | Yrd Mat Mat Min Total Allies 1 | . . . 1 Largest Group 1 | . . . 1 Highest-Rated Group 31 | . . . 31 Highest-Rated Ally 31 | . . . 31 Total Orders . | . . . . Ally Attacks 9 | . . . 9 Total Damage 123 | . . . 123 Kills . | . . . . Allies Corrupted . | . . . . Allies Melted . | . . . . Intel | -11 -10 -9 -9 ------- Run | Yrd Mat Mat Min Robot Analysis Total 1 | . . 1 . Derelict Logs Recovered 1 | . . . 1 Drone Launches . | . . . . Drone Recoveries . | . . . . Exploration | -11 -10 -9 -9 ------------- Run | Yrd Mat Mat Min Turns Passed 1913 | 117 613 454 729 Spaces Moved 1066 | 72 267 241 486 Core 11 | 7 . . 4 Treads 318 | . 220 7 91 Legs 75 | 65 10 . . Wheels 662 | . 37 234 391 Hover . | . . . . Flight . | . . . . Fastest Speed 50 | 50 115 100 50 Average Speed 121 | 113 152 111 109 Slowest Speed 500 | 120 240 160 500 Overloaded Moves . | . . . . Propulsion Burnouts . | . . . . Robots Hopped . | . . . . Cave-ins Triggered . | . . . . Exploration Rate (%) 37 | 4 47 20 80 Regions Visited 3 Branch Regions 1 Pre-discovered Areas . | . . . . Known Exits Taken . | . . . . Unknown Exits Taken 3 | 1 1 1 . Scrap Searched 1 | . . . 1 Spaces Dug 1 | . . . 1 Terrain Destroyed 15 | . . . 15 Melee . | . . . . Projectile 1 | . . . 1 AOE 14 | . . . 14 Terrain Rammed . | . . . . Walls Destroyed . | . . . . Machines Disabled . | . . . . Actions | -11 -10 -9 -9 --------- Run | Yrd Mat Mat Min Total 1468 | 93 378 361 636 Wait 199 | 3 37 57 102 Move 1063 | 71 266 240 486 Hop . | . . . . Pick Up 27 | 6 7 7 7 Fast Attach 20 | 7 6 3 4 Attach 10 | . 2 4 4 Detach 4 | . 1 2 1 Swap 9 | . 4 2 3 Drop 7 | . 1 5 1 Fire 129 | 6 54 41 28 Melee . | . . . . Ram . | . . . . Kick . | . . . . Crush . | . . . . Escape Stasis . | . . . . Rewire . | . . . . Trap . | . . . . Miscellaneous . | . . . . Route ------- -11/Scrapyard -10/Materials -9/Materials -9/Mines (discovered 2 exits: *Mat x2) History --------- Turn | Location | Event 4 | -11/Scrapyard | Discovered new exit (range 15) 118 | -11/Scrapyard | Entered Materials 317 | -10/Materials | Build established: Mutant 619 | -10/Materials | Core integrity fell below 50% 711 | -10/Materials | Discovered new exit (range 5) 731 | -10/Materials | Entered another Materials area 731 | -9/Materials | Evolved 2 slots: Propulsion x1, Utility x1 820 | -9/Materials | Discovered new exit (range 16) 1185 | -9/Materials | Entered Mines 1204 | -9/Mines | Lost 5 parts (1p2n1u1w) 1211 | -9/Mines | Identified exit to Materials 1243 | -9/Mines | Found a damaged Exp. Sensor Array with a note attached 1247 | -9/Mines | Found Prototype Device 1450 | -9/Mines | Lost 5 parts (2n2u1w) 1508 | -9/Mines | Discovered exit to Materials (range 14) 1719 | -9/Mines | Build established: Scavenger-Mutant 1773 | -9/Mines | Received a Mining Laser from a helpful Derelict 1826 | -9/Mines | Assembled infested the area 1898 | -9/Mines | Core integrity fell below 50% 1913 | -9/Mines | Core integrity fell below 20% 1914 | -9/Mines | Released all parts (3) 1914 | -9/Mines | Destroyed by D-53 Grenadier with Mini Grenade Launcher Last Messages --------------- dispatching Demolisher response squad. 01834_ Acquired Imp. Light Cannon. [Achievement: Slippery One] 01893_ Critical hit (Burn: +37). 01895_ Core Extractor disabled. 01898_ C-30 ARC bursts open, deploying its payload. 01898_ D-53 Grenadier unfolds itself. 01899_ G-34 Mercenary destroyed. 01901_ Mni. Grenade Launcher destroyed. 01901_ Destroyed Mni. Grenade Launcher. 01901_ D-53 Grenadier suffers critical hit (Burn). 01903_ Lgt. Ion Engine destroyed. 01908_ Destroyed Shock Absorption System. 01908_ Wheel destroyed. 01912_ Field Laser destroyed. 01914_ Released Structural Scanner. 01914_ Released Thermal Generator. 01914_ Released Lrg. Storage Unit. Map ----- +----------------------------------------------------+ | | | | | | | | | | | | | | | | | | | | | | | | | | | | | | | ?????????????######?????????????????????????? | | ????????############????##############??????? | | ???????######## ###?#################??????? | | ########## ####### ## ##??????? | | ######### ##### # "" ##??????? | | ##### " ##??????? | | ###### ### ### ##### [% ##??????? | | ###### ######## ##### !d] g ##??????? | | # T######= ### [!![ [% ##??????? | | # """ ###?## ! ### |!!* % ##??????? | | # """ ###?## = ## @d ###??????? | | # """ ##??### #########??????? | | # ##??#### ] #### ###########???????? | | # """ ##???####* ##### ####?????????????? | | # """ ##????### #### # ????????????????? | | # """ ##????## ##?###????????????????? | | # ##????## ##????????????????????? | | ### #######??### ## ????????????????????? | | ### #######??######### ??????????????????? | | ###!% ##???######### ????????????????? | | ### #### ##??????????#### ???????????? | | ## #### ##???????????#### ##???????????? | | # ##????????????????????? ##???????????? | | ##?????????????????????? ###??????????? | | ##??????????????????????? ##??????????? | | ######???????????????????????? ##??????????? | | #######???????????????????????? ##??????????? | | ###???????????????????????????? #??????????? | | ##??????????????????????????????????????????? | | ##??????????????????????????????????????????? | | ##??????????????????????????????????????????? | | ###?????????????????????????????????????????? | | ####????????????????????????????????????????? | | ###????????????????????????????????????????? | | #########?????????????????????????????????? | +----------------------------------------------------+ Best States ------------- Heat Dissipation 28 Energy Generation 10 Energy Capacity 250 Matter Stores 300 Matter Capacity 400 Sight Range 16 Robot Scan Range 14 Terrain Scan Range 16 Terrain Scan Density 10 Armor Coverage 150 Evasion (%) 55 Recoil Reduction 2 Item Schematics ----------------- Thermal Generator | -9/Materials | Scanalyzed Sensor Array | -9/Materials | Scanalyzed Robot Schematics ------------------ None Fabricated ------------ Nothing Alien Tech Used ----------------- None Achievements -------------- Slippery One Challenges ------------ None Game ------ Seed SupersonicEncryptedCharger Manual? 0 Play Time 00:19:06 Cumulative 28.7 hours Start 2024.04.18 @ 20:08:48 End 2024.04.18 @ 20:27:55 Sessions 1 Manual Loads 0 Difficulty Rogue Special Mode None Game No. 22 Rogue 22 Adventurer 0 Explorer 0 Win Type - Total 0 Types 0/0/0/0/0/0/0/0/0 Lore% 21 Gallery% 29 Achievement% 24 Wizard Run 0 Options --------- Layout 2 ASCII 0 Keyboard 1 Movement Numpad Keybinds 0 Fullscreen 2 Font 24/Smallcaps Map View 50x49 Zoom Use 0% Tactical HUD 1 Map Filters NONE Filters NONE Steam 1 RUN: 4843cc4c-9521-4279-b360-1b9537b9d26f